fUSD/lending_fUSD_20241205
["ID","MTS","AMOUNT","RATE_DAILY","PERIOD"]
[344381897,1733400637757,-500.0,7.499e-05,2]
[344381898,1733400637770,-325.74611403,7.499e-05,2]
[344381899,1733400637784,-878.72,7.499e-05,2]
[344381900,1733400637796,-500.0,7.499e-05,2]
[344381901,1733400637809,-500.0,7.499e-05,2]
[344381902,1733400637821,-616.42,7.499e-05,2]
[344381903,1733400637833,-878.72,7.499e-05,2]
[344381904,1733400637845,-500.0,7.499e-05,2]
[344381905,1733400637857,-500.0,7.499e-05,2]
[344381906,1733400637868,-616.42,7.499e-05,2]
[344381907,1733400637880,-500.0,7.499e-05,2]
[344381908,1733400637892,-878.72,7.499e-05,2]
[344381909,1733400637904,-500.0,7.499e-05,2]
[344381910,1733400637916,-616.42,7.499e-05,2]
[344381911,1733400637928,-500.0,7.499e-05,2]
[344381912,1733400637942,-500.0,7.499e-05,2]
[344381913,1733400637955,-878.72,7.499e-05,2]
[344381914,1733400637967,-500.0,7.499e-05,2]
[344381915,1733400637980,-616.42,7.499e-05,2]
[344381916,1733400637991,-500.0,7.499e-05,2]
[344381917,1733400638010,-500.0,7.499e-05,2]
[344381918,1733400638024,-500.0,7.499e-05,2]
[344381919,1733400638039,-878.72,7.499e-05,2]
[344381920,1733400638053,-500.0,7.499e-05,2]
[344381921,1733400638069,-500.0,7.499e-05,2]
[344381922,1733400638084,-515.40869625,7.499e-05,2]
[344381924,1733400638097,-878.72,7.499e-05,2]
[344381925,1733400638111,-500.0,7.499e-05,2]
[344381926,1733400638124,-500.0,7.499e-05,2]
[344381927,1733400638136,-500.0,7.499e-05,2]
[344381928,1733400638149,-616.42,7.499e-05,2]
[344381930,1733400638161,-123.98983541,7.499e-05,2]
[344381931,1733400638184,-754.73016459,7.499e-05,2]
[344381932,1733400638197,-500.0,7.499e-05,2]
[344381935,1733400638210,-500.0,7.499e-05,2]
[344381937,1733400638222,-500.0,7.499e-05,2]
[344381938,1733400638235,-616.42,7.499e-05,2]
[344381939,1733400638247,-878.72,7.499e-05,2]
[344381940,1733400638259,-500.0,7.499e-05,2]
[344381941,1733400638271,-500.0,7.499e-05,2]
[344381942,1733400638283,-500.0,7.499e-05,2]
[344381943,1733400638296,-616.42,7.499e-05,2]
[344381945,1733400638309,-878.72,7.499e-05,2]
[344381947,1733400638321,-500.0,7.499e-05,2]
[344381948,1733400638333,-500.0,7.499e-05,2]
[344381949,1733400638346,-500.0,7.499e-05,2]
[344381950,1733400638359,-616.42,7.499e-05,2]
[344381951,1733400638372,-878.72,7.499e-05,2]
[344381952,1733400638385,-500.0,7.499e-05,2]
[344381953,1733400638398,-495.38715897,7.499e-05,2]
[344381954,1733400638412,-500.0,7.499e-05,2]
[344381955,1733400638429,-616.64027394,7.499e-05,2]
[344381956,1733400638444,-878.72,7.499e-05,2]
[344381957,1733400638459,-500.0,7.499e-05,2]
[344381958,1733400638474,-500.0,7.499e-05,2]
[344381959,1733400638488,-878.72,7.499e-05,2]
[344381960,1733400638501,-500.0,7.499e-05,2]
[344381961,1733400638515,-310.5638287,7.499e-05,2]
[344381962,1733400638528,-878.72,7.499e-05,2]
[344381963,1733400638541,-500.0,7.499e-05,2]
[344381964,1733400638554,-878.72,7.499e-05,2]
[344381965,1733400638571,-500.0,7.499e-05,2]
[344381966,1733400638584,-252.69323125,7.499e-05,2]
[344381967,1733400638643,-247.30676875,7.499e-05,2]
[344381968,1733400638656,-878.82652303,7.499e-05,2]
[344381969,1733400638669,-500.0,7.499e-05,2]
[344381970,1733400638682,-500.0,7.499e-05,2]
[344381971,1733400638694,-348.10313234,7.499e-05,2]
[344381972,1733400638706,-498.13857588,7.499e-05,2]
[344382141,1733400641217,-681.45000005,7.438e-05,2]
[344382142,1733400641235,-416.54999995,7.438e-05,2]
[344382143,1733400641245,-1.86142412,7.499e-05,2]
[344382144,1733400641256,-500.0,7.499e-05,2]
[344382145,1733400641266,-500.0,7.499e-05,2]
[344382146,1733400641276,-500.0,7.499e-05,2]
[344382147,1733400641286,-260.49,7.499e-05,2]
[344382148,1733400641295,-1519.34,7.499e-05,2]
[344382149,1733400641305,-500.0,7.499e-05,2]
[344382150,1733400641320,-890.15581489,7.499e-05,2]
[344382151,1733400641350,-629.18418511,7.499e-05,2]
[344382152,1733400641360,-500.0,7.499e-05,2]
[344382153,1733400641371,-1184.81581489,7.499e-05,2]
[344382154,1733400641383,-334.52418511,7.499e-05,2]
[344382155,1733400641393,-500.0,7.499e-05,2]
[344382156,1733400641402,-1519.34,7.499e-05,2]
[344382157,1733400641413,-500.0,7.499e-05,2]
[344382158,1733400641423,-1193.28514765,7.499e-05,2]
[344382159,1733400641435,-326.05485235,7.499e-05,2]
[344382160,1733400641445,-291.02444765,7.499e-05,2]
[344382161,1733400641461,-208.97555235,7.499e-05,2]
[344382162,1733400641471,-500.0,7.499e-05,2]
[344382163,1733400641481,-1519.34,7.499e-05,2]
[344382164,1733400641491,-500.0,7.499e-05,2]
[344382165,1733400641500,-500.0,7.499e-05,2]
[344382166,1733400641511,-500.0,7.499e-05,2]
[344382167,1733400641520,-1519.34,7.499e-05,2]
[344382168,1733400641530,-784.02,7.499e-05,2]
[344382169,1733400641539,-500.0,7.499e-05,2]
[344382170,1733400641549,-500.0,7.499e-05,2]
[344382171,1733400641559,-784.02,7.499e-05,2]
[344382172,1733400641574,-1519.34,7.499e-05,2]
[344382173,1733400641585,-500.0,7.499e-05,2]
[344382174,1733400641595,-500.0,7.499e-05,2]
[344382175,1733400641605,-500.0,7.499e-05,2]
[344382176,1733400641615,-564.99,7.499e-05,2]
[344382177,1733400641624,-1519.34,7.499e-05,2]
[344382178,1733400641634,-500.0,7.499e-05,2]
[344382179,1733400641644,-500.0,7.499e-05,2]
[344382180,1733400641654,-500.0,7.499e-05,2]
[344382181,1733400641663,-1519.34,7.499e-05,2]
[344382182,1733400641673,-500.0,7.499e-05,2]
[344382183,1733400641683,-500.0,7.499e-05,2]
[344382184,1733400641693,-500.0,7.499e-05,2]
[344382185,1733400641702,-1519.34,7.499e-05,2]
[344382186,1733400641712,-500.0,7.499e-05,2]
[344382187,1733400641722,-500.0,7.499e-05,2]
[344382188,1733400641732,-505.71424252,7.499e-05,2]
[344382189,1733400641742,-1519.34,7.499e-05,2]
[344382190,1733400641751,-500.0,7.499e-05,2]
[344382191,1733400641761,-173.79192309,7.499e-05,2]
[344382192,1733400641771,-1519.34,7.499e-05,2]
[344382193,1733400641781,-500.0,7.499e-05,2]
[344382194,1733400641790,-163.07239136,7.499e-05,2]
[344382195,1733400642010,-500.0,7.499e-05,2]
[344382196,1733400642020,-1519.34,7.499e-05,2]
[344382197,1733400642030,-356.49477544,7.499e-05,2]
[344382198,1733400642055,-143.50522456,7.499e-05,2]
[344382199,1733400642068,-1519.34,7.499e-05,2]
[344382200,1733400642079,-503.16464201,7.499e-05,2]
[344382201,1733400642088,-500.0,7.499e-05,2]
[344382202,1733400642099,-500.0,7.499e-05,2]
[344382203,1733400642109,-500.0,7.499e-05,2]
[344382204,1733400642119,-500.0,7.499e-05,2]
[344382205,1733400642129,-500.0,7.499e-05,2]
[344382206,1733400642138,-337.67422928,7.499e-05,2]
[344382207,1733400642534,-484.11,7.196e-05,2]
[344382208,1733400642547,-22.94,7.196e-05,2]
[344382209,1733400642556,-162.32577072,7.499e-05,2]
[344382210,1733400642569,-477.98922928,7.499e-05,2]
[344382211,1733400642582,-22.01077072,7.499e-05,2]
[344382212,1733400642591,-500.0,7.499e-05,2]
[344382213,1733400642600,-222.75281893,7.499e-05,2]
[344382214,1733400642612,-405.45893429,7.499e-05,2]
[344382215,1733400642621,-159.0633103,7.499e-05,2]
[344382216,1733400642631,-500.0,7.499e-05,2]
[344382217,1733400642640,-385.83859293,7.499e-05,2]
[344382218,1733400642649,-500.0,7.499e-05,2]
[344382219,1733400642658,-500.0,7.499e-05,2]
[344382220,1733400642668,-500.0,7.499e-05,2]
[344382221,1733400642677,-300.50715876,7.499e-05,2]
[344382222,1733400642690,-199.49284124,7.499e-05,2]
[344382223,1733400642700,-194.45215875,7.499e-05,2]
[344382224,1733400642715,-305.54784125,7.499e-05,2]
[344382225,1733400642724,-500.0,7.499e-05,2]
[344382226,1733400642733,-500.0,7.499e-05,2]
[344382227,1733400642743,-397.60668742,7.499e-05,2]
[344382228,1733400642754,-102.39331258,7.499e-05,2]
[344382229,1733400642764,-500.0,7.499e-05,2]
[344382230,1733400642773,-500.0,7.499e-05,2]
[344382231,1733400642784,-500.0,7.499e-05,2]
[344382232,1733400642794,-601.87469644,7.499e-05,2]
[344382233,1733400642803,-500.0,7.499e-05,2]
[344382234,1733400642815,-500.0,7.499e-05,2]
[344382235,1733400642825,-1519.34,7.499e-05,2]
[344382236,1733400642834,-296.07246843,7.499e-05,2]
[344382237,1733400642882,-203.92753157,7.499e-05,2]
[344382238,1733400642891,-500.0,7.499e-05,2]
[344382239,1733400642901,-393.21361839,7.499e-05,2]
[344382240,1733400642910,-1519.34,7.499e-05,2]
[344382241,1733400642919,-500.0,7.499e-05,2]
[344382242,1733400642929,-500.0,7.499e-05,2]
[344382243,1733400642939,-500.0,7.499e-05,2]
[344382244,1733400642948,-560.15472282,7.499e-05,2]
[344382245,1733400642958,-500.0,7.499e-05,2]
[344382246,1733400642968,-500.0,7.499e-05,2]
[344382247,1733400642978,-500.0,7.499e-05,2]
[344382248,1733400642988,-1519.34,7.499e-05,2]
[344382249,1733400642997,-500.0,7.499e-05,2]
[344382250,1733400643011,-1519.34,7.499e-05,2]
[344382251,1733400643020,-500.0,7.499e-05,2]
[344382252,1733400643030,-500.0,7.499e-05,2]
[344382253,1733400643040,-500.0,7.499e-05,2]
[344382254,1733400643050,-500.0,7.499e-05,2]
[344382255,1733400643059,-500.0,7.499e-05,2]
[344382256,1733400643072,-1519.34,7.499e-05,2]
[344382257,1733400643082,-500.0,7.499e-05,2]
[344382258,1733400643092,-500.0,7.499e-05,2]
[344382260,1733400643101,-501.47676688,7.499e-05,2]
[344382261,1733400643110,-500.0,7.499e-05,2]
[344382262,1733400643119,-500.0,7.499e-05,2]
[344382263,1733400643129,-1519.34,7.499e-05,2]
[344382264,1733400643138,-500.0,7.499e-05,2]
[344382265,1733400643148,-500.0,7.499e-05,2]
[344382266,1733400643157,-1519.34,7.499e-05,2]
[344382267,1733400643167,-500.0,7.499e-05,2]
[344382268,1733400643178,-500.0,7.499e-05,2]
[344382269,1733400643187,-500.0,7.499e-05,2]
[344382270,1733400643196,-500.0,7.499e-05,2]
[344382271,1733400643206,-1519.34,7.499e-05,2]
[344382277,1733400643466,-500.0,7.499e-05,2]
[344382278,1733400643477,-309.10264598,7.499e-05,2]
[344382279,1733400643487,-502.03224314,7.499e-05,2]
[344382280,1733400643497,-1519.42113258,7.499e-05,2]
[344382282,1733400643507,-500.0,7.499e-05,2]
[344382284,1733400643516,-500.0,7.499e-05,2]
[344382285,1733400643525,-500.0,7.499e-05,2]
[344382287,1733400643535,-500.0,7.499e-05,2]
[344382289,1733400643545,-409.38096456,7.499e-05,2]
[344382291,1733400643554,-500.0,7.499e-05,2]
[344382292,1733400643565,-500.0,7.499e-05,2]
[344382293,1733400643575,-500.0,7.499e-05,2]
[344382294,1733400643585,-500.0,7.499e-05,2]
[344382295,1733400643595,-500.0,7.499e-05,2]
[344382296,1733400643605,-500.0,7.499e-05,2]
[344382297,1733400643614,-500.0,7.499e-05,2]
[344382298,1733400643624,-500.0,7.499e-05,2]
[344382299,1733400643635,-500.0,7.499e-05,2]
[344382300,1733400643645,-500.0,7.499e-05,2]
[344382301,1733400643654,-500.0,7.499e-05,2]
[344382302,1733400643664,-500.0,7.499e-05,2]
[344382303,1733400643674,-362.85739144,7.499e-05,2]
[344382304,1733400643684,-500.0,7.499e-05,2]
[344382305,1733400643694,-501.28508909,7.499e-05,2]
[344382306,1733400643703,-500.0,7.499e-05,2]
[344382307,1733400643713,-500.0,7.499e-05,2]
[344382308,1733400643722,-500.0,7.499e-05,2]
[344382309,1733400643732,-500.0,7.499e-05,2]
[344382310,1733400643742,-500.0,7.499e-05,2]
[344382311,1733400643751,-501.49491537,7.499e-05,2]
[344382312,1733400643760,-500.0,7.499e-05,2]
[344382313,1733400643769,-500.0,7.499e-05,2]
[344382314,1733400643779,-500.0,7.499e-05,2]
[344382315,1733400643789,-401.85,7.499e-05,2]
[344382316,1733400643798,-500.0,7.499e-05,2]
[344382317,1733400643807,-500.0,7.499e-05,2]
[344382318,1733400643820,-500.0,7.499e-05,2]
[344382319,1733400643830,-500.0,7.499e-05,2]
[344382320,1733400643839,-500.0,7.499e-05,2]
[344382321,1733400643849,-500.0,7.499e-05,2]
[344382322,1733400643861,-500.0,7.499e-05,2]
[344382323,1733400643871,-500.0,7.499e-05,2]
[344382324,1733400643880,-500.0,7.499e-05,2]
[344382325,1733400643889,-500.0,7.499e-05,2]
[344382326,1733400643899,-503.41465829,7.499e-05,2]
[344382327,1733400643909,-500.0,7.499e-05,2]
[344382328,1733400643920,-254.1170396,7.499e-05,2]
[344382329,1733400643947,-245.8829604,7.499e-05,2]
[344382330,1733400643959,-19.83964224,7.499e-05,2]
[344382331,1733400643971,-386.94278473,7.499e-05,2]
[344382343,1733400644435,-93.21757303,7.499e-05,2]
[344382344,1733400644446,-500.0,7.499e-05,2]
[344382345,1733400644457,-500.0,7.499e-05,2]
[344382346,1733400644467,-500.0,7.499e-05,2]
[344382347,1733400644476,-343.61339071,7.499e-05,2]
[344382348,1733400644487,-39.37075837,7.499e-05,2]
[344382349,1733400644500,-460.62924163,7.499e-05,2]
[344382350,1733400644509,-500.0,7.499e-05,2]
[344382351,1733400644519,-66.37075837,7.499e-05,2]
[344382352,1733400644556,-433.62924163,7.499e-05,2]
[344382353,1733400644566,-500.0,7.499e-05,2]
[344382354,1733400644576,-500.0,7.499e-05,2]
[344382355,1733400644587,-500.80312152,7.499e-05,2]
[344382356,1733400644596,-500.0,7.499e-05,2]
[344382357,1733400644606,-500.9426224,7.499e-05,2]
[344382358,1733400644615,-500.0,7.499e-05,2]
[344382359,1733400644625,-500.0,7.499e-05,2]
[344382360,1733400644635,-500.0,7.499e-05,2]
[344382361,1733400644645,-500.0,7.499e-05,2]
[344382362,1733400644654,-500.0,7.499e-05,2]
[344382363,1733400644664,-500.0,7.499e-05,2]
[344382364,1733400644674,-500.0,7.499e-05,2]
[344382365,1733400644683,-500.0,7.499e-05,2]
[344382366,1733400644693,-500.0,7.499e-05,2]
[344382367,1733400644702,-500.0,7.499e-05,2]
[344382368,1733400644712,-500.0,7.499e-05,2]
[344382369,1733400644722,-156.04939592,7.499e-05,2]
[344382370,1733400644731,-500.0,7.499e-05,2]
[344382371,1733400644742,-500.0,7.499e-05,2]
[344382372,1733400644751,-500.0,7.499e-05,2]
[344382373,1733400644762,-171.39310514,7.499e-05,2]
[344382374,1733400644785,-328.60689486,7.499e-05,2]
[344382375,1733400644795,-500.0,7.499e-05,2]
[344382376,1733400644804,-500.0,7.499e-05,2]
[344382377,1733400644815,-91.03475377,7.499e-05,2]
[344382387,1733400646288,-498.20524623,7.499e-05,2]
[344382388,1733400646297,-192.85604102,7.499e-05,2]
[344382389,1733400646306,-500.0,7.499e-05,2]
[344382390,1733400646318,-500.0,7.499e-05,2]
[344382391,1733400646327,-500.0,7.499e-05,2]
[344382392,1733400646337,-500.0,7.499e-05,2]
[344382393,1733400646346,-500.0,7.499e-05,2]
[344382394,1733400646356,-500.0,7.499e-05,2]
[344382395,1733400646366,-600.21159008,7.499e-05,2]
[344382396,1733400646376,-500.0,7.499e-05,2]
[344382397,1733400646386,-353.22712267,7.499e-05,2]
[344382398,1733400646400,-146.77287733,7.499e-05,2]
[344382399,1733400646410,-500.0,7.499e-05,2]
[344382400,1733400646420,-500.0,7.499e-05,2]
[344382401,1733400646429,-500.0,7.499e-05,2]
[344382402,1733400646439,-500.0,7.499e-05,2]
[344382403,1733400646449,-281.75256667,7.499e-05,2]
[344382404,1733400646472,-218.24743333,7.499e-05,2]
[344382405,1733400646481,-113.41006717,7.499e-05,2]
[344382406,1733400646493,-386.58993283,7.499e-05,2]
[344382407,1733400646502,-500.0,7.499e-05,2]
[344382408,1733400646512,-500.0,7.499e-05,2]
[344382409,1733400646521,-500.0,7.499e-05,2]
[344382410,1733400646530,-500.0,7.499e-05,2]
[344382411,1733400646539,-520.00924464,7.499e-05,2]
[344382412,1733400646549,-500.0,7.499e-05,2]
[344382413,1733400646559,-280.65671208,7.499e-05,2]
[344382414,1733400646569,-500.0,7.499e-05,2]
[344382415,1733400646578,-500.0,7.499e-05,2]
[344382416,1733400646587,-500.0,7.499e-05,2]
[344382417,1733400646596,-500.0,7.499e-05,2]
[344382418,1733400646605,-500.0,7.499e-05,2]
[344382419,1733400646614,-500.0,7.499e-05,2]
[344382420,1733400646623,-500.52250084,7.499e-05,2]
[344382421,1733400646632,-500.0,7.499e-05,2]
[344382422,1733400646641,-500.0,7.499e-05,2]
[344382423,1733400646651,-500.0,7.499e-05,2]
[344382424,1733400646659,-500.0,7.499e-05,2]
[344382425,1733400646668,-500.0,7.499e-05,2]
[344382426,1733400646677,-500.0,7.499e-05,2]
[344382427,1733400646687,-119.75443583,7.499e-05,2]
[344382428,1733400646720,-157.41399861,7.499e-05,2]
[344382429,1733400646731,-222.83156556,7.499e-05,2]
[344382430,1733400646740,-500.0,7.499e-05,2]
[344382431,1733400646749,-500.0,7.499e-05,2]
[344382432,1733400646759,-345.65622353,7.499e-05,2]
[344382433,1733400646768,-1259.49,7.499e-05,2]
[344382434,1733400646777,-1187.78,7.499e-05,2]
[344382435,1733400646786,-500.0,7.499e-05,2]
[344382436,1733400646795,-500.0,7.499e-05,2]
[344382437,1733400646804,-1259.49,7.499e-05,2]
[344382438,1733400646813,-1187.78,7.499e-05,2]
[344382439,1733400646824,-500.0,7.499e-05,2]
[344382440,1733400646833,-500.0,7.499e-05,2]
[344382441,1733400646842,-500.0,7.499e-05,2]
[344382442,1733400646851,-1187.78,7.499e-05,2]
[344382443,1733400646860,-500.0,7.499e-05,2]
[344382444,1733400646869,-500.0,7.499e-05,2]
[344382445,1733400646878,-500.0,7.499e-05,2]
[344382446,1733400646886,-500.0,7.499e-05,2]
[344382447,1733400646895,-1259.49,7.499e-05,2]
[344382448,1733400646904,-1187.78,7.499e-05,2]
[344382449,1733400646913,-512.34749392,7.499e-05,2]
[344382450,1733400646927,-66.13807092,7.499e-05,2]
[344382451,1733400646936,-187.53224261,7.499e-05,2]
[344382452,1733400646957,-334.07279987,7.499e-05,2]
[344382453,1733400646967,-500.0,7.499e-05,2]
[344382454,1733400646976,-1259.49,7.499e-05,2]
[344382455,1733400646985,-478.82170013,7.499e-05,2]
[344382460,1733400866986,357.27,6.635e-05,2]
[344382461,1733400945760,21101.0,1.7e-05,3]
[344382462,1733401003253,828.86,7.499e-05,7]
[344382463,1733401003507,828.86,7.499e-05,7]
[344382464,1733401003782,828.86,7.499e-05,7]
[344382465,1733401004045,828.86,7.499e-05,7]
[344382466,1733401004293,828.86,7.499e-05,7]
[344382467,1733401004663,828.86,7.499e-05,7]
[344382468,1733401004918,828.86,7.499e-05,7]
[344382469,1733401005460,828.86,7.499e-05,7]
[344382470,1733401005525,828.86,7.499e-05,7]
[344382471,1733401005710,828.86,7.499e-05,7]
[344382472,1733401005966,828.86,7.499e-05,7]
[344382473,1733401006220,828.86,7.499e-05,7]
[344382474,1733401006505,828.86,7.499e-05,7]
[344382475,1733401006748,828.86,7.499e-05,7]
[344382476,1733401007158,828.86,7.499e-05,7]
[344382477,1733401007936,828.86,7.499e-05,7]
[344382478,1733401008198,828.86,7.499e-05,7]
[344382479,1733401008481,828.86,7.499e-05,7]
[344382480,1733401009152,828.86,7.499e-05,7]
[344382481,1733401009553,828.86,7.499e-05,7]
[344382482,1733401009824,828.86,7.499e-05,7]
[344382483,1733401010120,828.86,7.499e-05,7]
[344382484,1733401010411,828.86,7.499e-05,7]
[344382485,1733401010676,829.09863106,7.499e-05,7]
[344382486,1733401430556,-300.0,7.296e-05,2]
[344382487,1733401430581,-505.59,7.296e-05,2]
[344382488,1733401430605,-495.09,7.296e-05,2]
[344382489,1733401430628,-497.11,7.296e-05,2]
[344382490,1733401430651,-504.86,7.296e-05,2]
[344382491,1733401430674,-500.48,7.297e-05,2]
[344382492,1733401430698,-498.08,7.297e-05,2]
[344382493,1733401430719,-508.25,7.297e-05,2]
[344382494,1733401430742,-496.35,7.297e-05,2]
[344382495,1733401430763,-492.96,7.297e-05,2]
[344382496,1733401430787,-509.06,7.297e-05,2]
[344382497,1733401430808,-506.47,7.297e-05,2]
[344382498,1733401430829,-501.98,7.297e-05,2]
[344382499,1733401430851,-502.26,7.297e-05,2]
[344382500,1733401430872,-499.79,7.297e-05,2]
[344382501,1733401430894,-504.57,7.297e-05,2]
[344382502,1733401430916,-493.03,7.297e-05,2]
[344382503,1733401430937,-495.54,7.297e-05,2]
[344382504,1733401430965,-506.93,7.297e-05,2]
[344382505,1733401430988,-507.6,7.298e-05,2]
[344382506,1733401431011,-507.71,7.298e-05,2]
[344382507,1733401431036,-506.9,7.298e-05,2]
[344382508,1733401431059,-150.0,7.298e-05,2]
[344382509,1733401431082,-31231.94216755,7.298e-05,2]
[344382510,1733401431106,-502.13,7.298e-05,2]
[344382511,1733401431130,-497.64,7.298e-05,2]
[344382512,1733401431154,-509.96,7.298e-05,2]
[344382513,1733401431176,-503.58,7.298e-05,2]
[344382514,1733401431200,-492.24,7.298e-05,2]
[344382515,1733401431225,-501.87,7.298e-05,2]
[344382516,1733401431248,-495.97,7.298e-05,2]
[344382517,1733401431271,-498.59,7.298e-05,2]
[344382518,1733401431301,-506.25,7.298e-05,2]
[344382519,1733401431324,-508.52,7.299e-05,2]
[344382520,1733401431347,-490.79,7.299e-05,2]
[344382521,1733401431370,-505.67,7.299e-05,2]
[344382522,1733401431394,-508.68,7.299e-05,2]
[344382523,1733401431416,-503.69,7.397e-05,2]
[344382524,1733401431439,-818.0616,7.397e-05,2]
[344382525,1733401431463,-500.0,7.397e-05,2]
[344382526,1733401431485,-500.0,7.397e-05,2]
[344382527,1733401431508,-500.0,7.397e-05,2]
[344382528,1733401431533,-512.52217872,7.397e-05,2]
[344382529,1733401431555,-500.0,7.397e-05,2]
[344382530,1733401431576,-500.0,7.397e-05,2]
[344382531,1733401431598,-501.36087397,7.397e-05,2]
[344382532,1733401431620,-500.0,7.397e-05,2]
[344382533,1733401431643,-500.0,7.397e-05,2]
[344382534,1733401431665,-502.79716049,7.397e-05,2]
[344382535,1733401431688,-2500.0,7.399e-05,2]
[344382536,1733401431711,-209.42006845,7.473e-05,2]
[344382537,1733401431734,-500.0,7.473e-05,2]
[344382538,1733401431757,-566.0,7.488e-05,2]
[344382539,1733401431781,-1262.0,7.488e-05,2]
[344382540,1733401431807,-773.822,7.488e-05,2]
[344382541,1733401431828,-2003.0,7.488e-05,2]
[344382542,1733401431856,-150.256,7.488e-05,2]
[344382543,1733401431877,-563.0,7.488e-05,2]
[344382544,1733401431899,-1893.0,7.488e-05,2]
[344382545,1733401431922,-3761.0,7.488e-05,2]
[344382546,1733401431944,-1252.0,7.488e-05,2]
[344382547,1733401431966,-816.0,7.488e-05,2]
[344382548,1733401431988,-973.0,7.488e-05,2]
[344382549,1733401432009,-3529.0,7.488e-05,2]
[344382550,1733401432036,-535.0,7.488e-05,2]
[344382551,1733401432057,-13713.0,7.488e-05,2]
[344382552,1733401432078,-1166.0,7.488e-05,2]
[344382553,1733401432100,-5963.0,7.488e-05,2]
[344382554,1733401432124,-150.0,7.488e-05,2]
[344382555,1733401432146,-1098.0,7.488e-05,2]
[344382556,1733401432168,-1245.688,7.49e-05,2]
[344382557,1733401432189,-500.0,7.497e-05,2]
[344382558,1733401432211,-500.0,7.497e-05,2]
[344382559,1733401432234,-500.0,7.497e-05,2]
[344382560,1733401432255,-637.14320441,7.497e-05,2]
[344382561,1733401432279,-500.0,7.497e-05,2]
[344382562,1733401432302,-500.0,7.497e-05,2]
[344382563,1733401432325,-500.0,7.497e-05,2]
[344382564,1733401432347,-500.0,7.497e-05,2]
[344382565,1733401432368,-500.0,7.497e-05,2]
[344382566,1733401432393,-500.0,7.497e-05,2]
[344382567,1733401432420,-500.0,7.497e-05,2]
[344382568,1733401432440,-500.0,7.497e-05,2]
[344382569,1733401432462,-500.0,7.497e-05,2]
[344382570,1733401432483,-500.0,7.497e-05,2]
[344382571,1733401432504,-500.0,7.497e-05,2]
[344382572,1733401432527,-500.0,7.497e-05,2]
[344382573,1733401432549,-500.0,7.497e-05,2]
[344382574,1733401432571,-164.46519729,7.497e-05,2]
[344382575,1733401432593,-500.0,7.497e-05,2]
[344382576,1733401432618,-500.0,7.497e-05,2]
[344382577,1733401432640,-504.93564682,7.497e-05,2]
[344382578,1733401432662,-500.0,7.497e-05,2]
[344382579,1733401432684,-500.0,7.497e-05,2]
[344382580,1733401432707,-500.0,7.497e-05,2]
[344382581,1733401432729,-500.0,7.497e-05,2]
[344382582,1733401432766,-500.89161068,7.497e-05,2]
[344382583,1733401432792,-500.0,7.497e-05,2]
[344382584,1733401432815,-500.0,7.497e-05,2]
[344382585,1733401432838,-500.0,7.497e-05,2]
[344382586,1733401432861,-500.0,7.497e-05,2]
[344382587,1733401432882,-500.0,7.497e-05,2]
[344382588,1733401432904,-500.0,7.497e-05,2]
[344382589,1733401432928,-502.26874856,7.497e-05,2]
[344382590,1733401432952,-501.42495214,7.497e-05,2]
[344382591,1733401432974,-500.0547077,7.497e-05,2]
[344382592,1733401432997,-501.29522836,7.497e-05,2]
[344382593,1733401433020,-500.0,7.497e-05,2]
[344382594,1733401433043,-501.39795151,7.497e-05,2]
[344382595,1733401433065,-500.0,7.497e-05,2]
[344382596,1733401433088,-500.0,7.497e-05,2]
[344382597,1733401433110,-500.58767096,7.497e-05,2]
[344382598,1733401433132,-507.9081338,7.497e-05,2]
[344382599,1733401433156,-500.0,7.497e-05,2]
[344382600,1733401433177,-500.0,7.497e-05,2]
[344382601,1733401433198,-500.0,7.497e-05,2]
[344382602,1733401433223,-500.0,7.497e-05,2]
[344382603,1733401433246,-500.0,7.497e-05,2]
[344382604,1733401433271,-500.0,7.497e-05,2]
[344382605,1733401433298,-500.0,7.497e-05,2]
[344382606,1733401433325,-500.0,7.497e-05,2]